fUSD/lending_fUSD_20260608
["ID","MTS","AMOUNT","RATE_DAILY","PERIOD"]
[424435566,1780889439000,-500.0,0.00012827,2]
[424435564,1780889439000,-500.0,0.00012827,2]
[424435572,1780889439000,-500.0,0.00012827,2]
[424435559,1780889439000,-151.0,0.00012641,2]
[424435567,1780889439000,-500.0,0.00012827,2]
[424435563,1780889439000,-815.24673025,0.00012827,2]
[424435569,1780889439000,-500.0,0.00012827,2]
[424435562,1780889439000,-500.0,0.00012822,2]
[424435553,1780889439000,-215.86427702,0.00012522,2]
[424435571,1780889439000,-500.0,0.00012827,2]
[424435565,1780889439000,-500.0,0.00012827,2]
[424435585,1780889439000,-500.0,0.00012827,2]
[424435573,1780889439000,-500.0,0.00012827,2]
[424435575,1780889439000,-500.0,0.00012827,2]
[424435577,1780889439000,-500.0,0.00012827,2]
[424435578,1780889439000,-500.0,0.00012827,2]
[424435576,1780889439000,-500.0,0.00012827,2]
[424435574,1780889439000,-500.0,0.00012827,2]
[424435582,1780889439000,-500.0,0.00012827,2]
[424435584,1780889439000,-500.0,0.00012827,2]
[424435579,1780889439000,-500.0,0.00012827,2]
[424435583,1780889439000,-500.0,0.00012827,2]
[424435580,1780889439000,-500.0,0.00012827,2]
[424435581,1780889439000,-500.0,0.00012827,2]
[424435555,1780889439000,-389.77247383,0.00012528,7]
[424435568,1780889439000,-500.0,0.00012827,2]
[424435558,1780889439000,-181.64888321,0.00012617,2]
[424435541,1780889439000,-1948.32316134,0.00012265,2]
[424435556,1780889439000,-500.0,0.00012548,2]
[424435531,1780889439000,-379.69632707,0.0001218,7]
[424435527,1780889439000,-1987.82949945,0.00012064,2]
[424435530,1780889439000,-665.18,0.00012077,2]
[424435528,1780889439000,-1500000.0,0.00012065,2]
[424435529,1780889439000,-627030.9900775,0.00012074,2]
[424435534,1780889439000,-82547.4455879,0.00012204,2]
[424435535,1780889439000,-8410.9477481,0.00012204,2]
[424435532,1780889439000,-48818.4324751,0.00012191,2]
[424435533,1780889439000,-151.0,0.00012201,2]
[424435536,1780889439000,-2000.0,0.00012248,2]
[424435538,1780889439000,-942.47,0.0001226,2]
[424435587,1780889439000,-500.0,0.00012827,2]
[424435545,1780889439000,-815.24673025,0.00012308,2]
[424435544,1780889439000,-500.0,0.00012274,2]
[424435540,1780889439000,-2214.94788622,0.00012265,2]
[424435539,1780889439000,-1030.70236582,0.00012264,3]
[424435547,1780889439000,-1023.81862264,0.00012329,2]
[424435542,1780889439000,-156.63845064,0.00012265,2]
[424435546,1780889439000,-310.74,0.00012329,2]
[424435543,1780889439000,-153.77004869,0.00012265,2]
[424435548,1780889439000,-186.27302698,0.00012329,2]
[424435554,1780889439000,-379.69632707,0.00012528,7]
[424435551,1780889439000,-160.0,0.00012509,2]
[424435549,1780889439000,-157.79594305,0.00012444,2]
[424435552,1780889439000,-48818.4324751,0.00012517,2]
[424435557,1780889439000,-150.61239485,0.00012617,2]
[424435526,1780889439000,-151.0,0.00012062,2]
[424435560,1780889439000,-151.0,0.00012644,2]
[424435590,1780889439000,-500.0,0.00012827,2]
[424435537,1780889439000,-248.82,0.0001226,2]
[424435589,1780889439000,-500.0,0.00012827,2]
[424435623,1780889439000,-151.0,0.00012827,2]
[424435628,1780889439000,-379.69632708,0.00012992,7]
[424435625,1780889439000,-255.0,0.00012852,2]
[424435626,1780889439000,-162.54,0.00012917,2]
[424435627,1780889439000,-27129.77,0.00012959,2]
[424435624,1780889439000,-48818.4324751,0.00012843,2]
[424435630,1780889439000,-3021.0,0.00013111,5]
[424435631,1780889439000,-3261.0,0.00013111,5]
[424435629,1780889439000,-500.0,0.00013096,2]
[424435634,1780889439000,-171.468713,0.00013226,2]
[424435632,1780889439000,-48818.4324751,0.00013169,2]
[424435635,1780889439000,-270.027138,0.00013226,2]
[424435633,1780889439000,-166.4,0.00013176,2]
[424435620,1780889439000,-151.619969,0.00012827,2]
[424435636,1780889439000,-267.146323,0.00013226,2]
[424435640,1780889439000,-166.873001,0.00013247,2]
[424435638,1780889439000,-348.081856,0.00013247,2]
[424435648,1780889439000,-1023.81862264,0.00013397,2]
[424435647,1780889439000,-221.033887,0.0001338,2]
[424435637,1780889439000,-212.652176,0.00013247,2]
[424435641,1780889439000,-160.0,0.00013292,2]
[424435646,1780889439000,-500.0,0.0001337,2]
[424435644,1780889439000,-815.24673025,0.00013345,2]
[424435642,1780889439000,-202.341048,0.00013292,2]
[424435643,1780889439000,-244.682096,0.00013292,2]
[424435645,1780889439000,-712.39495351,0.00013345,2]
[424435649,1780889439000,-181.64888321,0.00013412,2]
[424435586,1780889439000,-500.0,0.00012827,2]
[424435639,1780889439000,-194.983192,0.00013247,2]
[424435619,1780889439000,-151.619969,0.00012827,2]
[424435550,1780889439000,-529.43,0.00012496,2]
[424435617,1780889439000,-151.0,0.00012827,2]
[424435592,1780889439000,-500.0,0.00012827,2]
[424435614,1780889439000,-500.0,0.00012827,2]
[424435588,1780889439000,-500.0,0.00012827,2]
[424435591,1780889439000,-500.0,0.00012827,2]
[424435596,1780889439000,-500.0,0.00012827,2]
[424435594,1780889439000,-500.0,0.00012827,2]
[424435595,1780889439000,-500.0,0.00012827,2]
[424435593,1780889439000,-500.0,0.00012827,2]
[424435600,1780889439000,-500.0,0.00012827,2]
[424435598,1780889439000,-500.0,0.00012827,2]
[424435601,1780889439000,-500.0,0.00012827,2]
[424435602,1780889439000,-500.0,0.00012827,2]
[424435607,1780889439000,-500.0,0.00012827,2]
[424435603,1780889439000,-500.0,0.00012827,2]
[424435597,1780889439000,-500.0,0.00012827,2]
[424435606,1780889439000,-500.0,0.00012827,2]
[424435604,1780889439000,-500.0,0.00012827,2]
[424435615,1780889439000,-555.814082,0.00012827,2]
[424435611,1780889439000,-500.0,0.00012827,2]
[424435621,1780889439000,-151.619969,0.00012827,2]
[424435616,1780889439000,-151.0,0.00012827,2]
[424435613,1780889439000,-500.0,0.00012827,2]
[424435618,1780889439000,-155.164914,0.00012827,2]
[424435622,1780889439000,-151.619969,0.00012827,2]
[424435610,1780889439000,-500.0,0.00012827,2]
[424435609,1780889439000,-500.0,0.00012827,2]
[424435608,1780889439000,-500.0,0.00012827,2]
[424435599,1780889439000,-500.0,0.00012827,2]
[424435612,1780889439000,-500.0,0.00012827,2]
[424435605,1780889439000,-500.0,0.00012827,2]
[424435711,1780889440000,-500.0,0.00013698,2]
[424435708,1780889440000,-500.0,0.00013698,2]
[424435703,1780889440000,-150.0,0.00013643,2]
[424435700,1780889440000,-628.29,0.00013608,2]
[424435707,1780889440000,-150.0,0.00013694,2]
[424435706,1780889440000,-186.27302698,0.00013664,2]
[424435701,1780889440000,-1329.79,0.00013608,2]
[424435705,1780889440000,-150.0,0.00013654,2]
[424435721,1780889440000,-581.54,0.00013698,2]
[424435704,1780889440000,-507.27012513,0.00013644,2]
[424435702,1780889440000,-2000.0,0.00013609,2]
[424435719,1780889440000,-500.0,0.00013698,2]
[424435723,1780889440000,-581.54,0.00013698,2]
[424435720,1780889440000,-500.0,0.00013698,2]
[424435715,1780889440000,-500.0,0.00013698,2]
[424435717,1780889440000,-500.0,0.00013698,2]
[424435716,1780889440000,-500.0,0.00013698,2]
[424435718,1780889440000,-500.0,0.00013698,2]
[424435722,1780889440000,-581.54,0.00013698,2]
[424435712,1780889440000,-500.0,0.00013698,2]
[424435725,1780889440000,-581.54,0.00013698,2]
[424435736,1780889440000,-500.0,0.00013698,2]
[424435735,1780889440000,-500.0,0.00013698,2]
[424435726,1780889440000,-581.54,0.00013698,2]
[424435698,1780889440000,-150.0,0.00013591,2]
[424435714,1780889440000,-500.0,0.00013698,2]
[424435710,1780889440000,-531.94649365,0.00013698,2]
[424435673,1780889440000,-203.80794025,0.00013488,2]
[424435699,1780889440000,-434.28,0.00013608,2]
[424435652,1780889440000,-216.73130534,0.00013437,2]
[424435655,1780889440000,-150.0,0.00013488,2]
[424435653,1780889440000,-150.25705167,0.00013488,2]
[424435657,1780889440000,-150.0,0.00013488,2]
[424435665,1780889440000,-151.93797256,0.00013488,2]
[424435663,1780889440000,-150.0,0.00013488,2]
[424435650,1780889440000,-3066.86210564,0.00013437,2]
[424435660,1780889440000,-150.0,0.00013488,2]
[424435667,1780889440000,-150.0,0.00013488,2]
[424435669,1780889440000,-169.83658506,0.00013488,2]
[424435671,1780889440000,-150.0,0.00013488,2]
[424435675,1780889440000,-150.0,0.00013488,2]
[424435727,1780889440000,-581.54,0.00013698,2]
[424435677,1780889440000,-150.0,0.00013488,2]
[424435679,1780889440000,-48818.4324751,0.00013496,2]
[424435687,1780889440000,-784.767606,0.00013518,2]
[424435685,1780889440000,-784.767606,0.00013518,2]
[424435691,1780889440000,-179.930003,0.00013518,2]
[424435683,1780889440000,-784.767606,0.00013518,2]
[424435681,1780889440000,-784.767606,0.00013518,2]
[424435689,1780889440000,-151.0,0.00013518,2]
[424435693,1780889440000,-205.1344528,0.00013538,2]
[424435695,1780889440000,-150.0,0.00013539,2]
[424435696,1780889440000,-150.61239485,0.0001357,2]
[424435697,1780889440000,-150.0,0.00013571,2]
[424435709,1780889440000,-500.0,0.00013698,2]
[424435724,1780889440000,-581.54,0.00013698,2]
[424435713,1780889440000,-500.0,0.00013698,2]
[424435734,1780889440000,-500.0,0.00013698,2]
[424435757,1780889440000,-500.0,0.00013698,2]
[424435759,1780889440000,-500.0,0.00013698,2]
[424435763,1780889440000,-500.0,0.00013698,2]
[424435765,1780889440000,-264.69050335,0.00013698,2]
[424435766,1780889440000,-500.0,0.00013698,2]
[424435769,1780889440000,-500.0,0.00013698,2]
[424435767,1780889440000,-500.0,0.00013698,2]
[424435768,1780889440000,-500.0,0.00013698,2]
[424435764,1780889440000,-500.0,0.00013698,2]
[424435774,1780889440000,-500.0,0.00013698,2]
[424435770,1780889440000,-500.0,0.00013698,2]
[424435773,1780889440000,-500.0,0.00013698,2]
[424435758,1780889440000,-500.0,0.00013698,2]
[424435775,1780889440000,-500.0,0.00013698,2]
[424435776,1780889440000,-500.0,0.00013698,2]
[424435777,1780889440000,-500.0,0.00013698,2]
[424435781,1780889440000,-500.0,0.00013698,2]
[424435778,1780889440000,-322.71289429,0.00013698,2]
[424435780,1780889440000,-500.0,0.00013698,2]
[424435779,1780889440000,-500.65266857,0.00013698,2]
[424435782,1780889440000,-512.59450446,0.00013698,2]
[424435786,1780889440000,-500.0,0.00013698,2]
[424435784,1780889440000,-500.0,0.00013698,2]
[424435785,1780889440000,-500.0,0.00013698,2]
[424435783,1780889440000,-500.0,0.00013698,2]
[424435729,1780889440000,-581.54,0.00013698,2]
[424435771,1780889440000,-500.0,0.00013698,2]
[424435754,1780889440000,-500.0,0.00013698,2]
[424435772,1780889440000,-500.0,0.00013698,2]
[424435760,1780889440000,-501.23722603,0.00013698,2]
[424435732,1780889440000,-500.0,0.00013698,2]
[424435753,1780889440000,-527.31447559,0.00013698,2]
[424435730,1780889440000,-581.54,0.00013698,2]
[424435733,1780889440000,-502.49134264,0.00013698,2]
[424435728,1780889440000,-581.54,0.00013698,2]
[424435731,1780889440000,-500.0,0.00013698,2]
[424435738,1780889440000,-500.0,0.00013698,2]
[424435739,1780889440000,-500.0,0.00013698,2]
[424435748,1780889440000,-500.0,0.00013698,2]
[424435740,1780889440000,-500.0,0.00013698,2]
[424435749,1780889440000,-500.0,0.00013698,2]
[424435741,1780889440000,-500.0,0.00013698,2]
[424435745,1780889440000,-549.54166988,0.00013698,2]
[424435737,1780889440000,-500.0,0.00013698,2]
[424435762,1780889440000,-500.0,0.00013698,2]
[424435742,1780889440000,-500.0,0.00013698,2]
[424435755,1780889440000,-500.0,0.00013698,2]
[424435747,1780889440000,-500.0,0.00013698,2]
[424435746,1780889440000,-500.0,0.00013698,2]
[424435743,1780889440000,-500.0,0.00013698,2]
[424435751,1780889440000,-500.0,0.00013698,2]
[424435756,1780889440000,-500.0,0.00013698,2]
[424435761,1780889440000,-500.0,0.00013698,2]
[424435752,1780889440000,-500.0,0.00013698,2]
[424435750,1780889440000,-500.0,0.00013698,2]
[424435744,1780889440000,-500.0,0.00013698,2]
[424435841,1780889441000,-500.0,0.00013698,2]
[424435824,1780889441000,-991.77,0.00013698,2]
[424435832,1780889441000,-991.77,0.00013698,2]
[424435830,1780889441000,-991.77,0.00013698,2]
[424435831,1780889441000,-991.77,0.00013698,2]
[424435822,1780889441000,-991.77,0.00013698,2]
[424435823,1780889441000,-991.77,0.00013698,2]
[424435828,1780889441000,-991.77,0.00013698,2]
[424435825,1780889441000,-991.77,0.00013698,2]
[424435829,1780889441000,-991.77,0.00013698,2]
[424435833,1780889441000,-991.77,0.00013698,2]
[424435821,1780889441000,-991.77,0.00013698,2]
[424435826,1780889441000,-991.77,0.00013698,2]
[424435834,1780889441000,-500.0,0.00013698,2]
[424435846,1780889441000,-500.0,0.00013698,2]
[424435836,1780889441000,-500.0,0.00013698,2]
[424435839,1780889441000,-500.0,0.00013698,2]
[424435837,1780889441000,-500.0,0.00013698,2]
[424435835,1780889441000,-500.0,0.00013698,2]
[424435840,1780889441000,-500.0,0.00013698,2]
[424435842,1780889441000,-500.0,0.00013698,2]
[424435843,1780889441000,-500.0,0.00013698,2]
[424435844,1780889441000,-616.30777431,0.00013698,2]
[424435849,1780889441000,-13462.7,0.00013699,2]
[424435848,1780889441000,-497.98493118,0.00013698,2]
[424435845,1780889441000,-500.0,0.00013698,2]
[424435852,1780889441000,-4999.99,0.00013699,2]
[424435820,1780889441000,-500.0,0.00013698,2]
[424435853,1780889441000,-9999.99,0.00013699,2]
[424435838,1780889441000,-500.0,0.00013698,2]
[424435818,1780889441000,-500.0,0.00013698,2]
[424435792,1780889441000,-500.0,0.00013698,2]
[424435819,1780889441000,-500.0,0.00013698,2]
[424435850,1780889441000,-299.99,0.00013699,2]
[424435787,1780889441000,-500.0,0.00013698,2]
[424435800,1780889441000,-500.0,0.00013698,2]
[424435799,1780889441000,-514.86964047,0.00013698,2]
[424435801,1780889441000,-500.0,0.00013698,2]
[424435788,1780889441000,-500.0,0.00013698,2]
[424435797,1780889441000,-500.0,0.00013698,2]
[424435791,1780889441000,-500.0,0.00013698,2]
[424435795,1780889441000,-500.0,0.00013698,2]
[424435790,1780889441000,-503.93302661,0.00013698,2]
[424435793,1780889441000,-500.0,0.00013698,2]
[424435794,1780889441000,-500.0,0.00013698,2]
[424435796,1780889441000,-500.0,0.00013698,2]
[424435798,1780889441000,-500.0,0.00013698,2]
[424435817,1780889441000,-500.0,0.00013698,2]
[424435815,1780889441000,-500.0,0.00013698,2]
[424435803,1780889441000,-500.0,0.00013698,2]
[424435810,1780889441000,-500.0,0.00013698,2]
[424435806,1780889441000,-500.0,0.00013698,2]
[424435805,1780889441000,-457.12873569,0.00013698,2]
[424435802,1780889441000,-500.0,0.00013698,2]
[424435807,1780889441000,-500.0,0.00013698,2]
[424435804,1780889441000,-500.0,0.00013698,2]
[424435814,1780889441000,-500.0,0.00013698,2]
[424435811,1780889441000,-500.0,0.00013698,2]
[424435812,1780889441000,-500.0,0.00013698,2]
[424435808,1780889441000,-311.99555842,0.00013698,2]
[424435809,1780889441000,-500.0,0.00013698,2]
[424435816,1780889441000,-500.0,0.00013698,2]
[424435827,1780889441000,-991.77,0.00013698,2]
[424435813,1780889441000,-500.0,0.00013698,2]
[424435847,1780889441000,-500.0,0.00013698,2]
[424435896,1780889441000,-500.0,0.00013699,2]
[424435854,1780889441000,-9999.99,0.00013699,2]
[424435888,1780889441000,-500.0,0.00013699,2]
[424435889,1780889441000,-500.0,0.00013699,2]
[424435895,1780889441000,-500.0,0.00013699,2]
[424435893,1780889441000,-500.0,0.00013699,2]
[424435890,1780889441000,-500.0,0.00013699,2]
[424435892,1780889441000,-500.0,0.00013699,2]
[424435891,1780889441000,-500.0,0.00013699,2]
[424435898,1780889441000,-500.0,0.00013699,2]
[424435908,1780889441000,-150.0,0.00013737,2]
[424435899,1780889441000,-500.0,0.00013699,2]
[424435897,1780889441000,-500.0,0.00013699,2]
[424435900,1780889441000,-500.0,0.00013699,2]
[424435902,1780889441000,-500.0,0.00013699,2]
[424435906,1780889441000,-1571.88,0.000137,2]
[424435887,1780889441000,-500.0,0.00013699,2]
[424435905,1780889441000,-500.0,0.00013699,2]
[424435904,1780889441000,-500.0,0.00013699,2]
[424435907,1780889441000,-150.0,0.00013702,2]
[424435903,1780889441000,-500.0,0.00013699,2]
[424435909,1780889441000,-150.0,0.00013737,2]
[424435911,1780889441000,-150.0,0.00013798,2]
[424435910,1780889441000,-150.0,0.00013746,2]
[424435912,1780889441000,-150.0,0.00013821,2]
[424435919,1780889441000,-150.0,0.00013901,2]
[424435917,1780889441000,-150.0,0.00013862,2]
[424435918,1780889441000,-815.24673025,0.00013863,2]
[424435914,1780889441000,-172.28808339,0.00013836,10]
[424435915,1780889441000,-166.66,0.00013836,2]
[424435855,1780889441000,-9999.99,0.00013699,2]
[424435916,1780889441000,-150.0,0.00013849,2]
[424435901,1780889441000,-577.04372376,0.00013699,2]
[424435886,1780889441000,-500.0,0.00013699,2]
[424435913,1780889441000,-48818.4324751,0.00013822,2]
[424435885,1780889441000,-500.0,0.00013699,2]
[424435894,1780889441000,-500.0,0.00013699,2]
[424435856,1780889441000,-999.99,0.00013699,2]
[424435860,1780889441000,-150.99,0.00013699,2]
[424435859,1780889441000,-9999.99,0.00013699,2]
[424435857,1780889441000,-3437.51,0.00013699,2]
[424435867,1780889441000,-151.0,0.00013699,2]
[424435858,1780889441000,-744.19,0.00013699,2]
[424435869,1780889441000,-236.72037197,0.00013699,10]
[424435861,1780889441000,-200.0,0.00013699,2]
[424435864,1780889441000,-168.74,0.00013699,2]
[424435865,1780889441000,-843.7,0.00013699,2]
[424435866,1780889441000,-1098.36,0.00013699,2]
[424435868,1780889441000,-151.0,0.00013699,2]
[424435862,1780889441000,-166.66,0.00013699,2]
[424435863,1780889441000,-968.49,0.00013699,2]
[424435851,1780889441000,-24999.99,0.00013699,2]
[424435882,1780889441000,-500.0,0.00013699,2]
[424435884,1780889441000,-500.0,0.00013699,2]
[424435883,1780889441000,-500.0,0.00013699,2]
[424435875,1780889441000,-1000.0,0.00013699,15]
[424435877,1780889441000,-151.0,0.00013699,2]
[424435871,1780889441000,-156.98695077,0.00013699,10]
[424435880,1780889441000,-500.0,0.00013699,2]
[424435878,1780889441000,-151.0,0.00013699,2]
[424435876,1780889441000,-236.72037198,0.00013699,10]
[424435874,1780889441000,-1000.0,0.00013699,15]
[424435872,1780889441000,-231.4304986,0.00013699,2]
[424435881,1780889441000,-500.0,0.00013699,2]
[424435870,1780889441000,-344.57616678,0.00013699,10]
[424435873,1780889441000,-1000.0,0.00013699,2]
[424435879,1780889441000,-161.37214,0.00013699,2]
[424435967,1780889442000,-621.0,0.00014178,2]
[424435971,1780889442000,-1036.0,0.00014178,2]
[424435970,1780889442000,-621.0,0.00014178,2]
[424435960,1780889442000,-621.0,0.00014178,2]
[424435962,1780889442000,-1036.0,0.00014178,2]
[424435950,1780889442000,-621.0,0.00014178,2]
[424435951,1780889442000,-1036.0,0.00014178,2]
[424435955,1780889442000,-1036.0,0.00014178,2]
[424435957,1780889442000,-1036.0,0.00014178,2]
[424435949,1780889442000,-1036.0,0.00014178,2]
[424435953,1780889442000,-1036.0,0.00014178,2]
[424435956,1780889442000,-621.0,0.00014178,2]
[424435961,1780889442000,-621.0,0.00014178,2]
[424435964,1780889442000,-1036.0,0.00014178,2]
[424435974,1780889442000,-1036.0,0.00014178,2]
[424435963,1780889442000,-621.0,0.00014178,2]
[424435965,1780889442000,-621.0,0.00014178,2]
[424435969,1780889442000,-1036.0,0.00014178,2]
[424435968,1780889442000,-1036.0,0.00014178,2]
[424435966,1780889442000,-1036.0,0.00014178,2]
[424435984,1780889442000,-621.0,0.00014178,2]
[424435985,1780889442000,-1036.0,0.00014178,2]
[424435986,1780889442000,-621.0,0.00014178,2]
[424435977,1780889442000,-621.0,0.00014178,2]
[424435979,1780889442000,-621.0,0.00014178,2]
[424435982,1780889442000,-621.0,0.00014178,2]
[424435978,1780889442000,-1036.0,0.00014178,2]
[424435954,1780889442000,-621.0,0.00014178,2]
[424435980,1780889442000,-621.0,0.00014178,2]
[424435972,1780889442000,-621.0,0.00014178,2]
[424435952,1780889442000,-621.0,0.00014178,2]
[424435935,1780889442000,-150.0,0.00014056,2]
[424435959,1780889442000,-1036.0,0.00014178,2]
[424435976,1780889442000,-621.0,0.00014178,2]
[424435921,1780889442000,-150.0,0.00013916,2]
[424435920,1780889442000,-150.0,0.00013904,2]
[424435923,1780889442000,-275.919611,0.00013956,2]
[424435933,1780889442000,-433.0,0.00014018,2]
[424435922,1780889442000,-150.0,0.00013953,2]
[424435934,1780889442000,-3218.0,0.00014023,5]
[424435929,1780889442000,-250.0,0.00014,2]
[424435926,1780889442000,-150.0,0.00013987,2]
[424435930,1780889442000,-2000.0,0.00014,2]
[424435931,1780889442000,-316.0,0.00014,2]
[424435928,1780889442000,-2000.0,0.00014,2]
[424435925,1780889442000,-150.0,0.00013987,2]
[424435932,1780889442000,-150.0,0.00014004,2]
[424435927,1780889442000,-14281.61325543,0.0001399,2]
[424435924,1780889442000,-166.66,0.00013973,2]
[424435937,1780889442000,-150.0,0.00014108,2]
[424435939,1780889442000,-150.0,0.0001413,2]
[424435943,1780889442000,-1036.0,0.00014178,2]
[424435942,1780889442000,-150.0,0.00014159,2]
[424435940,1780889442000,-48818.4324751,0.00014148,2]
[424435938,1780889442000,-166.66,0.0001411,2]
[424435944,1780889442000,-1036.0,0.00014178,2]
[424435941,1780889442000,-150.0,0.00014154,2]
[424435945,1780889442000,-1036.0,0.00014178,2]
[424435946,1780889442000,-1036.0,0.00014178,2]
[424435936,1780889442000,-150.0,0.0001407,2]
[424435948,1780889442000,-621.0,0.00014178,2]
[424435958,1780889442000,-621.0,0.00014178,2]
[424435947,1780889442000,-1036.0,0.00014178,2]
[424435981,1780889442000,-1036.0,0.00014178,2]
[424436041,1780889442000,-615.0,0.00014178,2]
[424435975,1780889442000,-621.0,0.00014178,2]
[424436021,1780889442000,-615.0,0.00014178,2]
[424436017,1780889442000,-500.0,0.00014178,2]
[424436023,1780889442000,-500.0,0.00014178,2]
[424436016,1780889442000,-615.0,0.00014178,2]
[424436024,1780889442000,-500.0,0.00014178,2]
[424436022,1780889442000,-615.0,0.00014178,2]
[424436027,1780889442000,-615.0,0.00014178,2]
[424436028,1780889442000,-500.0,0.00014178,2]
[424436030,1780889442000,-502.03625046,0.00014178,2]
[424436040,1780889442000,-500.0,0.00014178,2]
[424436029,1780889442000,-615.0,0.00014178,2]
[424436033,1780889442000,-615.0,0.00014178,2]
[424436034,1780889442000,-615.0,0.00014178,2]
[424436037,1780889442000,-615.0,0.00014178,2]
[424436038,1780889442000,-500.0,0.00014178,2]
[424436036,1780889442000,-500.0,0.00014178,2]
[424436031,1780889442000,-615.0,0.00014178,2]
[424436035,1780889442000,-615.0,0.00014178,2]
[424436032,1780889442000,-615.0,0.00014178,2]
[424436039,1780889442000,-615.0,0.00014178,2]
[424436042,1780889442000,-500.0,0.00014178,2]
[424436047,1780889442000,-500.0,0.00014178,2]
[424436048,1780889442000,-150.0,0.00014178,2]
[424436049,1780889442000,-500.0,0.00014178,2]
[424436043,1780889442000,-536.89809248,0.00014178,2]
[424436045,1780889442000,-150.0,0.00014178,2]
[424436050,1780889442000,-199.68095837,0.00014178,2]
[424436046,1780889442000,-615.0,0.00014178,2]
[424435983,1780889442000,-1036.0,0.00014178,2]
[424436020,1780889442000,-500.0,0.00014178,2]
[424436018,1780889442000,-615.0,0.00014178,2]
[424436044,1780889442000,-615.0,0.00014178,2]
[424436026,1780889442000,-500.0,0.00014178,2]
[424436025,1780889442000,-615.0,0.00014178,2]
[424435973,1780889442000,-621.0,0.00014178,2]
[424435987,1780889442000,-1036.0,0.00014178,2]
[424435989,1780889442000,-500.0,0.00014178,2]
[424435992,1780889442000,-500.0,0.00014178,2]
[424436000,1780889442000,-500.0,0.00014178,2]
[424435991,1780889442000,-500.0,0.00014178,2]
[424435999,1780889442000,-1040.47862891,0.00014178,2]
[424435990,1780889442000,-621.0,0.00014178,2]
[424435993,1780889442000,-500.0,0.00014178,2]
[424435988,1780889442000,-500.0,0.00014178,2]
[424435994,1780889442000,-500.0,0.00014178,2]
[424435997,1780889442000,-500.0,0.00014178,2]
[424435995,1780889442000,-500.0,0.00014178,2]
[424435996,1780889442000,-500.0,0.00014178,2]
[424435998,1780889442000,-500.0,0.00014178,2]
[424436012,1780889442000,-500.0,0.00014178,2]
[424436002,1780889442000,-500.0,0.00014178,2]
[424436010,1780889442000,-500.0,0.00014178,2]
[424436011,1780889442000,-500.0,0.00014178,2]
[424436019,1780889442000,-500.0,0.00014178,2]
[424436006,1780889442000,-636.89239214,0.00014178,2]
[424436007,1780889442000,-500.0,0.00014178,2]
[424436005,1780889442000,-355.60355233,0.00014178,2]
[424436015,1780889442000,-500.0,0.00014178,2]
[424436003,1780889442000,-500.0,0.00014178,2]
[424436001,1780889442000,-500.0,0.00014178,2]
[424436004,1780889442000,-500.0,0.00014178,2]
[424436014,1780889442000,-615.0,0.00014178,2]
[424436008,1780889442000,-500.0,0.00014178,2]
[424436013,1780889442000,-500.0,0.00014178,2]
[424436082,1780889443000,-446.0,0.00014178,2]
[424436095,1780889443000,-500.0,0.00014178,2]